Cogmind - Beta 9 @@@ ROGUE MODE // 2019.10.23 @ 23:05:18 Player: muxecoid Result: Destroyed by as-92948 with Assembled Blade Performance ------------- Evolutions (0) 0 Regions Visited (4) 800 Robots Destroyed (15) 75 Value Destroyed (253) 253 Prototype IDs (0) 0 Alien Tech Used (0) 0 Bonus (0) 0 TOTAL SCORE: 1128 Bonus ------- None Cogmind --------- Core Integrity 0/250 Matter 300/300 Energy 100/100 System Corruption 5% Temperature Cool (0) Location -9/Mines Parts ------- Power (1) Propulsion (2) Aluminum Leg Compact Wheel Utility (2) High-capacity Storage Unit High-capacity Storage Unit Weapon (2) Inventory (20) Light Ion Engine Titanium Leg Titanium Leg Medium Storage Unit High-capacity Storage Unit High-capacity Storage Unit Advanced Signal Interpreter Advanced Targeting Computer Peak State ------------ Power Ion Engine Propulsion Light Treads Titanium Leg Utility High-capacity Storage Unit High-capacity Storage Unit Weapon Shock Rifle High-powered Shotgun Inventory Titanium Leg Medium Storage Unit High-capacity Storage Unit High-capacity Storage Unit Advanced Signal Interpreter Advanced Targeting Computer Assault Rifle [Rating: 14] Favorites ----------- Power Light Ion Engine Engine Light Ion Engine Propulsion Light Treads Treads Light Treads Leg Titanium Leg Wheel Compact Wheel Utility High-capacity Storage Unit Storage High-capacity Storage Unit Weapon Small Laser Energy Gun Small Laser Ballistic Gun Light Assault Rifle Build | -11 -10 -10 -10 -9 ------- Run | Scr Mat Min Exi Min Slots Evolved . | . . . . . Power . | . . . . . Propulsion . | . . . . . Utility . | . . . . . Weapon . | . . . . . Parts Attached 24 | 6 2 1 . 15 Power 5 | 1 . 1 . 3 Engine 5 | 1 . 1 . 3 Core . | . . . . . Reactor . | . . . . . Propulsion 8 | 2 . . . 6 Treads 2 | 2 . . . . Leg 4 | . . . . 4 Wheel 2 | . . . . 2 Hover . | . . . . . Flight . | . . . . . Utility 3 | 1 2 . . . Device . | . . . . . Storage 3 | 1 2 . . . Processor . | . . . . . Hackware . | . . . . . Protection . | . . . . . Artifact . | . . . . . Weapon 8 | 2 . . . 6 Energy Gun 3 | 1 . . . 2 Energy Cannon . | . . . . . Ballistic Gun 5 | 1 . . . 4 Ballistic Cannon . | . . . . . Launcher . | . . . . . Special Weapon . | . . . . . Impact Weapon . | . . . . . Slashing Weapon . | . . . . . Piercing Weapon . | . . . . . Special Melee Weapon . | . . . . . Unidentified Prototypes . | . . . . . Parts Lost 15 | . . 1 . 14 Power 5 | . . 1 . 4 Propulsion 3 | . . . . 3 Utility . | . . . . . Weapon 7 | . . . . 7 Highest Loss Streak 8 | . . 1 . 8 Average Slot Usage (%) 96 | . 95 100 100 88 Engine 13 | . 14 14 14 12 Treads 20 | . 28 28 28 2 Leg 6 | . . . . 20 Wheel 1 | . . . . 3 Storage 27 | . 23 28 28 28 Energy Gun 12 | . 14 14 14 7 Ballistic Gun 13 | . 14 14 14 12 Naked Turns . | . . . . . Heaviest Build 70 | 9 69 69 69 70 Greatest Support 40 | 40 40 40 40 40 Greatest Overweight (x) 3 | 1 1 1 1 3 Average Overweight (x) 1 | . . 1 1 1 Largest Inventory Capacity 20 | 6 20 20 20 20 Average Capacity 19 | 5 15 20 20 20 Most Carried 11 | 2 5 11 11 11 Average Carried 8 | 1 3 10 11 7 Final Capacity 20 | . . . . 20 Final Carried 8 | . . . . 8 Class Distribution -------------------- 94% | Hauler-Mutant 5% | Mutant Dominant Class ---------------- Hauler-Mutant | -10/Materials Hauler-Mutant | -10/Mines Hauler-Mutant | -10/Exiles Hauler-Mutant | -9/Mines Resources | -11 -10 -10 -10 -9 ----------- Run | Scr Mat Min Exi Min Matter Collected 511 | 260 . 43 . 208 Remotely . | . . . . . Salvage Created 377 | . . 192 . 185 Parts 23 | . . 10 . 13 Haulers Intercepted . | . . . . . Recyclers Shooed . | . . . . . Parts Field Recycled . | . . . . . Retrieved Matter . | . . . . . Parts Self-Destructed . | . . . . . Prevented . | . . . . . Kills | -11 -10 -10 -10 -9 ------- Run | Scr Mat Min Exi Min Combat Hostiles Destroyed 15 | . . 6 . 9 Melee 1 | . . . . 1 Guns 14 | . . 6 . 8 Classes Destroyed 3 | . . 2 . 1 Swarmer 7 | . . 3 . 4 Grunt 5 | . . 3 . 2 Assembled 3 | . . . . 3 Best Kill Streak 5 | . . 3 . 5 Combat Bots Only 5 | . . 3 . 5 Max Kills in Single Turn 1 | . . 1 . 1 Gunslinging . | . . . . . Exploded . | . . . . . Melee 1 | . . . . 1 Uniques/NPCs Destroyed . | . . . . . Combat | -11 -10 -10 -10 -9 -------- Run | Scr Mat Min Exi Min Damage Taken 1699 | . . 220 . 1479 Core 268 | . . 51 . 217 Absorbed by Shields . | . . . . . Core Remaining (%) 100 | 100 . . . . Volleys Fired 63 | . . 16 . 47 Largest 2 | . . 2 . 2 Hottest 90 | . . 60 . 90 Shots Fired 94 | . . 32 . 62 Gun 94 | . . 32 . 62 Cannon . | . . . . . Launcher . | . . . . . Special . | . . . . . Kinetic 63 | . . 16 . 47 Thermal 22 | . . 16 . 6 Explosive . | . . . . . Electromagnetic 9 | . . . . 9 Robot Hit Streak 17 | . . 17 . 7 Robot Miss Streak 4 | . . 2 . 4 Penetration Max . | . . . . . Secondary Targets 1 | . . . . 1 Max Gunslinging Chain 1 | . . . . 1 Shots Hit Robots 66 | . . 22 . 44 Core Hits 31 | . . 11 . 20 Critical Hits . | . . . . . Critical Kills . | . . . . . Critical Parts Destroyed . | . . . . . Melee Attacks . | . . . . . Impact . | . . . . . Slashing . | . . . . . Piercing . | . . . . . Sneak Attacks . | . . . . . Combat Hostiles . | . . . . . Follow-up Attacks . | . . . . . Damage Inflicted 738 | . . 232 . 506 Guns 679 | . . 232 . 447 Cannons . | . . . . . Explosions . | . . . . . Melee . | . . . . . Ramming 59 | . . . . 59 Kinetic 439 | . . 81 . 358 Thermal 172 | . . 151 . 21 Explosive . | . . . . . Electromagnetic 68 | . . . . 68 Impact . | . . . . . Slashing . | . . . . . Piercing . | . . . . . Highest Corruption 5 | . . . . 5 Average Corruption 4 | . . . . 4 Corruption Purged . | . . . . . Overload Shots . | . . . . . Overflow Damage . | . . . . . Projectiles . | . . . . . Explosions . | . . . . . Melee . | . . . . . Knockbacks . | . . . . . Impact . | . . . . . Kinetic . | . . . . . Secondary . | . . . . . Self-Inflicted Damage 28 | . . . . 28 Shots . | . . . . . Rammed 10 | . . . . 10 Targets Rammed 10 | . . . . 10 Kicked . | . . . . . Crushed . | . . . . . Highest Temperature 319 | . . 76 . 319 Average Temperature 121 | . . 25 . 179 Received Heat Transfer 550 | . . 72 . 478 Effects 3 | . . . . 3 Energy Bleed 1 | . . . . 1 Interference 2 | . . . . 2 Siege Activations . | . . . . . Robots Corrupted . | . . . . . Combat Hostiles . | . . . . . Parts Fried . | . . . . . Impact Corruptions . | . . . . . Robots Melted . | . . . . . Combat Hostiles . | . . . . . Parts Melted . | . . . . . Heat Transferred 400 | . . 350 . 50 Parts Sabotaged . | . . . . . Parts Stolen . | . . . . . Parts Stripped . | . . . . . Power Chain Reactions . | . . . . . Missiles Intercepted . | . . . . . Alert | -11 -10 -10 -10 -9 ------- Run | Scr Mat Min Exi Min Peak Influence 130 | . . 130 . 70 Average Influence 35 | . . 36 . 47 Maximum Alert Level . | . . . . . Low Security (%) 100 | . . . . . Level 1 . | . . . . . Level 2 . | . . . . . Level 3 . | . . . . . Level 4 . | . . . . . Level 5 . | . . . . . High Security . | . . . . . Max Security . | . . . . . Squads Dispatched 1 | . . 1 . . Investigation 1 | . . 1 . . Extermination . | . . . . . Reinforcement . | . . . . . Assault . | . . . . . Garrison . | . . . . . Intercept . | . . . . . Construction Impeded . | . . . . . Haulers Reinforced . | . . . . . Stealth | -11 -10 -10 -10 -9 --------- Run | Scr Mat Min Exi Min Distress Signals . | . . . . . Communications Jammed . | . . . . . Distress Signals . | . . . . . Times Spotted 20 | . . 8 . 12 Peak Tracking Total 7 | . . 3 . 7 Tactical Retreats 3 | . . . . 3 Traps | -11 -10 -10 -10 -9 ------- Run | Scr Mat Min Exi Min Traps Triggered . | . . . . . Indirectly . | . . . . . Trap Hack Attempts . | . . . . . Triggered . | . . . . . Disarmed . | . . . . . Reprogrammed . | . . . . . Reused . | . . . . . Traps Extracted . | . . . . . Installed . | . . . . . Triggered . | . . . . . Machines | -11 -10 -10 -10 -9 ---------- Run | Scr Mat Min Exi Min Machines Disabled . | . . . . . Max in Single Turn . | . . . . . Machines Sabotaged . | . . . . . Garrisons Compromised . | . . . . . Overloaded Fab Kills . | . . . . . Fab Network Shutdowns . | . . . . . Hacking | -11 -10 -10 -10 -9 --------- Run | Scr Mat Min Exi Min Machines Accessed 2 | . . 1 1 . Terminals . | . . . . . Fabricators . | . . . . . Repair Stations . | . . . . . Recycling Units . | . . . . . Scanalyzers . | . . . . . Garrison Access . | . . . . . Total Hacks 6 | . . 1 5 . Successful 6 | . . 1 5 . Failed . | . . . . . Catastrophic . | . . . . . Database Lockouts . | . . . . . Manual . | . . . . . Terminals . | . . . . . Fabricators . | . . . . . Repair Stations . | . . . . . Recycling Units . | . . . . . Scanalyzers . | . . . . . Garrison Access . | . . . . . Terminal Hacks 6 | . . 1 5 . Record 5 | . . . 5 . Open Door 1 | . . 1 . . Fabricator Hacks . | . . . . . Repair Station Hacks . | . . . . . Recycling Unit Hacks . | . . . . . Scanalyzer . | . . . . . Garrison Access Hacks . | . . . . . Unauthorized Hacks . | . . . . . Terminals . | . . . . . Fabricators . | . . . . . Repair Stations . | . . . . . Recycling Units . | . . . . . Scanalyzers . | . . . . . Garrison Access . | . . . . . Data Cores Recovered . | . . . . . Used . | . . . . . Hacking Detections . | . . . . . Full Trace Events . | . . . . . Feedback Events . | . . . . . Feedback Blocked . | . . . . . Robot Schematics Acquired . | . . . . . Robots Built . | . . . . . Matter . | . . . . . Time . | . . . . . Total Robot Build Rating . | . . . . . Part Schematics Acquired . | . . . . . Parts Built . | . . . . . Matter . | . . . . . Time . | . . . . . Total Part Build Rating . | . . . . . Parts Repaired . | . . . . . Time . | . . . . . Parts Recycled . | . . . . . Recycled Matter . | . . . . . Retrieved Matter . | . . . . . Retrieved Components . | . . . . . Parts Scanalyzed . | . . . . . Part Schematics Acquired . | . . . . . Parts Damaged . | . . . . . Bothacking | -11 -10 -10 -10 -9 ------------ Run | Scr Mat Min Exi Min Used RIF Installer . | . . . . . Robots Hacked . | . . . . . Non-combat . | . . . . . Combat . | . . . . . Robot Hacks Applied . | . . . . . Relay Couplers Released . | . . . . . Robots Rewired . | . . . . . Allies Hacked . | . . . . . Hacks Repelled . | . . . . . Allies | -11 -10 -10 -10 -9 -------- Run | Scr Mat Min Exi Min Total Allies 2 | . . 2 . . Largest Group 2 | . . 2 2 . Highest-Rated Group 46 | . . 46 46 . Highest-Rated Ally 31 | . . 31 31 . Total Orders . | . . . . . Ally Attacks . | . . . . . Total Damage . | . . . . . Kills . | . . . . . Allies Corrupted . | . . . . . Allies Melted . | . . . . . Intel | -11 -10 -10 -10 -9 ------- Run | Scr Mat Min Exi Min Robot Analysis Total . | . . . . . Derelict Logs Recovered 3 | . . 2 . 1 Drone Launches . | . . . . . Drone Recoveries . | . . . . . Exploration | -11 -10 -10 -10 -9 ------------- Run | Scr Mat Min Exi Min Turns Passed 1403 | 57 92 525 301 428 Spaces Moved 657 | 32 50 260 168 147 Core 4 | 4 . . . . Treads 509 | 28 50 260 168 3 Legs 116 | . . . . 116 Wheels 28 | . . . . 28 Hover . | . . . . . Flight . | . . . . . Fastest Speed 50 | 50 160 180 180 120 Average Speed 175 | 147 172 180 180 169 Slowest Speed 220 | 160 180 180 180 220 Overloaded Moves . | . . . . . Propulsion Burnouts . | . . . . . Robots Hopped . | . . . . . Cave-ins Triggered . | . . . . . Exploration Rate (%) 31 | 3 12 71 50 21 Regions Visited 4 Branch Regions 3 Pre-discovered Areas 1 | . . . 1 . Known Exits Taken . | . . . . . Unknown Exits Taken 4 | 1 1 1 1 . Scrap Searched . | . . . . . Spaces Dug . | . . . . . Terrain Destroyed . | . . . . . Melee . | . . . . . Projectile . | . . . . . AOE . | . . . . . Actions | -11 -10 -10 -10 -9 --------- Run | Scr Mat Min Exi Min Total 812 | 39 55 289 167 262 Wait 44 | . . 6 . 38 Move 653 | 31 49 259 167 147 Hop . | . . . . . Pick Up 17 | 2 3 7 . 5 Fast Attach 11 | 6 1 . . 4 Attach 9 | . . 1 . 8 Detach . | . . . . . Swap 4 | . 1 . . 3 Drop 1 | . 1 . . . Fire 63 | . . 16 . 47 Melee . | . . . . . Ram 10 | . . . . 10 Kick . | . . . . . Crush . | . . . . . Escape Stasis . | . . . . . Rewire . | . . . . . Trap . | . . . . . Miscellaneous . | . . . . . Route ------- -11/Scrapyard -10/Materials -10/Mines (discovered 3 exits: [*Mat x2] / *Exi) -10/Exiles -9/Mines History --------- Turn | Location | Event 19 | -11/Scrapyard | Discovered new exit (range 16) 58 | -11/Scrapyard | Entered Materials 73 | -10/Materials | Discovered new exit (range 14) 150 | -10/Materials | Entered Mines 150 | -10/Mines | Learned Materials garrison access intel 180 | -10/Mines | Met a Derelict shopkeep closing up shop 254 | -10/Mines | Discovered new exit (range 6) 359 | -10/Mines | Learned Materials machine intel 379 | -10/Mines | Build established: Hauler-Mutant 464 | -10/Mines | Discovered new exit (range 7) 664 | -10/Mines | Deemed a non-threat by the Exiles lab entrance 664 | -10/Mines | Discovered new exit (range 5) 675 | -10/Mines | Entered Exiles 675 | -10/Exiles | Accompanied by 2 allies 705 | -10/Exiles | Led the pair of lost Derelicts to a safe place 724 | -10/Exiles | Met 8R-AWN 764 | -10/Exiles | Met EX-HEX 834 | -10/Exiles | Met EX-DEC 845 | -10/Exiles | Learned location of Zion (-6) 873 | -10/Exiles | Met EX-BIN 954 | -10/Exiles | Discovered new exit (range 14) 976 | -10/Exiles | Entered Mines 993 | -9/Mines | Core integrity fell below 50% 1047 | -9/Mines | Core integrity fell below 20% 1069 | -9/Mines | Lost 8 parts (2p2n4w) 1109 | -9/Mines | Assembled infested the area 1233 | -9/Mines | Learned Materials interactive machine intel 1285 | -9/Mines | Lost 3 parts (1p2w) 1404 | -9/Mines | Destroyed by as-92948 with Assembled Blade Last Messages --------------- 01270_ Acquired Titanium Leg. 01273_ Acquired Lgt. Ion Engine. 01274_ Acquired 35 matter. 01296_ as-61185 destroyed. 01298_ Acquired 8 matter. 01338_ Acquired Com. Wheel. 01348_ Acquired 20 matter. 01357_ Lgt. Assault Rifle destroyed. 01357_ System corrupted by crushing effect (+4). 01358_ Slammed into as-28055. 01363_ as-28055 destroyed. 01396_ Slammed into as-92948. 01396_ Lgt. Ion Engine destroyed. 01396_ Com. Wheel destroyed. 01397_ Slammed into as-92948. 01397_ Destabilizing: Core damaged (-5). 01399_ Acquired 10 matter. 01399_ Slammed into as-92948. 01402_ Destabilizing: System corrupted (+1). 01403_ Slammed into as-92948. Map ----- +----------------------------------------------------+ | ?????????????????????????????????????????????????? | | ?????????????????????????????????????????????????? | | ?????????????????????????????????????????????????? | | ?????????????????????????????????????????????????? | | ?????????????????????????????????????????????????? | | ?????????????????????????????????????????????????? | | ?????????????????????????????????????????????????? | | ?????????????????????????????????????????????????? | | ?????????????????????????????????????????????????? | | ?????????????????????????????????????????????????? | | ?????????????????????????????????????????????????? | | ??????????????????????????????????????? ?????????? | | ??????????????????????????????????????? ????????? | | ??????????????????????????????????????* ?#???????? | | ?????????????????????????????????????%=# #???????? | | ????????????????????????????????????**= ##???????? | | ??????????????? ?????????????????# = |##??????? | | ??????????????? ????????????????# !%##?????? | | ??????????????? ??????????????## =* #?????? | | ??????????????? ?????????????# #????? | | ####??????????? ????????????? ????? | | ##?????????? ???#######?## ???? | | #?????????? ???# ### ???? | | #?????????? ???#"""= ???? | | ##?????????# #???#"""%a% ### ???? | | ###???????# #???#"""@%### #??????????????? | | ###?????# #???#"""%%#?## ##??????????????? | | ####??# #???# %%#???###???????????????? | | ##?# #???### ###?????????????????????? | | #?# #?????# #???????????????????????? | | # #?#!#####?# #???????????????????????? | | # #?#%## ###%####????????????????????? | | ## ####%# =* %% #????????????????????? | | ?#### ## *= %=%= %% #????????????????????? | | ????## ###! % =! % #????????????????????? | | ?????# =########### ##????????????????????? | | ?????# #??????????###?????????????????????? | | ?????# #######??????????????????????????????????? | | ?????####????????????????????????????????????????? | | ?????????????????????????????????????????????????? | | ?????????????????????????????????????????????????? | | ?????????????????????????????????????????????????? | | ?????????????????????????????????????????????????? | | ?????????????????????????????????????????????????? | | ?????????????????????????????????????????????????? | | ?????????????????????????????????????????????????? | | ?????????????????????????????????????????????????? | | ?????????????????????????????????????????????????? | | ?????????????????????????????????????????????????? | | ?????????????????????????????????????????????????? | +----------------------------------------------------+ Best States ------------- Heat Dissipation 25 Energy Generation 10 Energy Capacity 250 Matter Stores 300 Matter Capacity 300 Sight Range 16 Terrain Scan Density 10 Evasion (%) 40 Recoil Reduction 2 Item Schematics ----------------- None Robot Schematics ------------------ None Fabricated ------------ Nothing Alien Tech Used ----------------- None Achievements -------------- None Challenges ------------ None Game ------ Seed FireAluminumTendrils Manual? 0 Play Time 00:10:50 Cumulative 155.8 hours Start 2019.10.23 @ 22:24:55 End 2019.10.23 @ 23:05:18 Sessions 1 Manual Loads 0 Difficulty Rogue Special Mode None Game No. 93 Rogue 93 Adventurer 0 Explorer 0 Win Type - Total 5 Types 4/0/0/1/0/0/0 Lore% 60 Gallery% 75 Achievement% 58 Wizard Run 0 Options --------- ASCII 0 Keyboard 0 Movement Mouse Keybinds 0 Fullscreen 1 Font 18/X11 Map View 76x50 Tactical HUD 1 Map Filters NONE Filters NONE Steam 1 RUN: 382b33d3-809a-4d7a-9aeb-3d1973ff414a